Workbook

Sheet Introduction
B3: KSU-Vegetative Buffer
B5: An Excel spreadsheet program to estimate the economic benefits and costs of vegetative buffers.
L8: Version- 3.1.2017
B28: INTRODUCTION
B29: This program is designed to analyze vegetative buffers based upon the economic benefits and costs at the individual level (i.e., societal benefits and costs are not included in the analysis).
B31: INSTRUCTIONS FOR THE USER:
B32: Be sure to "Enable Content" and "Enable Macros" for the spreadsheet to function correctly.
B33: Visit the Description sheet to see examples of vegetative buffers. When you proceed to the Inputs sheet, enter your crop field and vegetative buffer data into the purple cells. IMPORTANT - Answer all questions in order from top to bottom and take note of the units assigned to each input. There are links to worksheets that can help you determine your one-time and annual costs and payments. After entering your data, click on the Perform Economic Analysis button to read the estimated results of a vegetative buffer on your crop field. The Budget sheet contains "background" data for the program. The Programs sheet exhibits the different funding programs available for vegetative buffers. This sheet is a resource to view as you think about applying for financial assistance. The turquoise cells represent the funding programs typically utilized for vegetative buffers.
B39: Some of the sheets contain a Print Screen button. Clicking on this button will print only the screen that you are viewing. On the Inputs sheet, there is a Print Entire Report button which will print every sheet in the workbook.
B44: FOR MORE INFORMATION:
B45: Several of the cells have a red triangle in the upper right hand corner of the cell. By moving your mouse cursor over this triangle, a brief description of the cell will be displayed on the screen.
B52: If you have questions, please contact:
B55: Robin Reid | F55: Jeff Williams | J55: Originally Developed by:
B56: Extension Associate | F56: Professor | J56: Craig Smith
B57: Dept. of Agricultural Economics | F57: Dept. of Agricultural Economics | J57: Watershed Economist
B58: Kansas State University | F58: Kansas State University | J58: Kansas State University
B59: robinreid@ksu.edu | F59: jwilliam@ksu.edu
B60: 785-532-0964 | F60: 785-532-4491
B62: ACKNOWLEDGEMENTS:
B63: The developers would like to express their appreciation for the helpful comments and contributions of Thad Rhodes, Katie Burke, Andrew Klein, John Leatherman, Kevin Dhuyvetter, Terry Kastens, Kevin Religa, Bob Lienemann, and Richard Jensen on this or earlier versions of this spreadsheet.
B67: Funded in part through the Kansas Department of Health and Environment by U.S. EPA Section 319 Funds in support of Kansas Watershed Restoration and Protection Strategies (WRAPS).
B70: Copyright 2017 AgManager.info, K-State Department of Agricultural Economics

Sheet Description
B6: A vegetative buffer is an area of land that is maintained in permanent vegetation to help reduce nutrient and sediment loss from agricultural fields, improve runoff water quality, and provide habitat for wildlife. Because of these societal benefits, there are several federal and state programs that encourage the installation and maintenance of vegetative buffers. For detailed information on the establishment of vegetative buffers see "Establishing Riparian Buffers"-KSU MF_2489
B10: http://www.bookstore.ksre.ksu.edu/pubs/mf2489.pdf
B12: Figure 1: Example Multispecies Riparian Buffer | L12: Figure 2: Problem - Erosion from rainfall events
I37: source: Iowa State University Leopold Center for Agroecology | S37: L. Betts, NRCS
B42: Figure 3: Before vegetative buffers | L42: Figure 4: After vegetative buffers
I67: L. Betts, NRCS | S67: L. Betts, NRCS
B70: Figure 5: After vegetative buffer installation | L70: Figure 6: Multispecies vegetative buffer
I94: L. Betts, NRCS | S94: L. Betts, NRCS

Sheet Inputs
D1: *Pay attention to Units!
B2: Field Inputs
B3: Kansas County | C3: MARSHALL | D3: County
B4: Cropland Rental Rate - not CCRP rental rate | C4: 80 | D4: dollars / acre / year
B5: Annual Cropland Rental Growth Rate | C5: 0.022 | D5: percent
B6: =IF(C2="Cash-Rent Tenant","N/A","Property Taxes") -> Property Taxes | C6: 12 | D6: dollars / acre
B7: Opportunity Cost of Your Money | C7: 0.05 | D7: percent
B9: Project Information
B10: Project Length | C10: 1000 | D10: feet
B11: Project Width | C11: 66 | D11: feet
B12: Project Area | C12: =((C10*C11)/43560)*1.2 -> 1.818181818 | D12: acres
B14: One Time Costs
B15: Engineering and Design | C15: 30 | D15: dollars
B16: Field Operations / Equipment Costs | C16: 884.72 | D16: dollars
B17: Labor Costs | C17: 0 | D17: dollars
B18: Material Costs | C18: 1313.6004 | D18: dollars
B19: Other Costs | C19: 0 | D19: dollars
B20: TOTAL ONE TIME COSTS | C20: =SUM(C15:C19) -> 2228.3204 | D20: dollars
C21: =OneCost!J30 -> 0
B22: Annual Costs
B23: Annual Maintenance Costs | C23: 25 | D23: dollars / acre / year
B24: Other Annual Costs | C24: =(50*2)/10 -> 10 | D24: dollars / acre / year
B25: Inflation Rate of Annual Costs | C25: 0.04 | D25: percent
B26: TOTAL ANNUAL COSTS | C26: =SUM(C23:C24) -> 35 | D26: dollars / acre / year
B28: One Time Payments Received
B29: One Time Cost-share/Incentive Payments | C29: =OnePayment!J16 -> 2081.898542 | D29: dollars
B30: Other One Time Payments of Benefits Received | C30: 0 | D30: dollars
B31: Management Payment | C31: =(2/3*C12)*(87.5)+(1/3*C12)*(33+8.5) -> 131.2121212 | D31: dollars
B32: Contract Year Received | C32: 7
B33: TOTAL ONE TIME PAYMENTS | C33: =SUM(C29:C31) -> 2213.110663 | D33: dollars
B35: Annual Payments Received
B36: Annual Rental/Incentive Payments | C36: =AnnualPayments!J8 -> 148.6726992 | D36: dollars / acre / year
B37: Other Annual Payments | C37: 0 | D37: dollars / acre / year
B38: Annual Benefits Received | C38: 0 | D38: dollars / acre / year
B39: TOTAL ANNUAL PAYMENTS | C39: =SUM(C36:C38) -> 148.6726992 | D39: dollars / acre / year
B41: Financial Assistance
B42: Continuous CRP Contract Length - Time period for Economic Analysis | C42: 10 | D42: years
B43: Property Tax Reduction | C43: 0 | D43: percent
F66: 10
F67: 11
F68: 12
B69: =VLOOKUP(C3,B71:C175,2) -> 95.30301231 | F69: 13
F70: 14
B71: =AnnualPayments!B27 -> ALLEN | C71: =AnnualPayments!D27 -> 68.12128402 | F71: 15
B72: =AnnualPayments!B28 -> ANDERSON | C72: =AnnualPayments!D28 -> 79.21647091
B73: =AnnualPayments!B29 -> ATCHISON | C73: =AnnualPayments!D29 -> 106.8762106
B74: =AnnualPayments!B30 -> BARBER | C74: =AnnualPayments!D30 -> 49.79310479
B75: =AnnualPayments!B31 -> BARTON | C75: =AnnualPayments!D31 -> 47.45064458
B76: =AnnualPayments!B32 -> BOURBON | C76: =AnnualPayments!D32 -> 71.64968185
B77: =AnnualPayments!B33 -> BROWN | C77: =AnnualPayments!D33 -> 118.2133315
B78: =AnnualPayments!B34 -> BUTLER | C78: =AnnualPayments!D34 -> 65.02759801
B79: =AnnualPayments!B35 -> CHASE | C79: =AnnualPayments!D35 -> 76.47504202
B80: =AnnualPayments!B36 -> CHAUTAUQUA | C80: =AnnualPayments!D36 -> 58.23550867
B81: =AnnualPayments!B37 -> CHEROKEE | C81: =AnnualPayments!D37 -> 72.27665074
B82: =AnnualPayments!B38 -> CHEYENNE | C82: =AnnualPayments!D38 -> 43.15994084
B83: =AnnualPayments!B39 -> CLARK | C83: =AnnualPayments!D39 -> 44.6501184
B84: =AnnualPayments!B40 -> CLAY | C84: =AnnualPayments!D40 -> 73.34970664
B85: =AnnualPayments!B41 -> CLOUD | C85: =AnnualPayments!D41 -> 68.12094201
B86: =AnnualPayments!B42 -> COFFEY | C86: =AnnualPayments!D42 -> 73.38353939
B87: =AnnualPayments!B43 -> COMANCHE | C87: =AnnualPayments!D43 -> 42.27670613
B88: =AnnualPayments!B44 -> COWLEY | C88: =AnnualPayments!D44 -> 55.33993792
B89: =AnnualPayments!B45 -> CRAWFORD | C89: =AnnualPayments!D45 -> 68.4123677
B90: =AnnualPayments!B46 -> DECATUR | C90: =AnnualPayments!D46 -> 49.23044408
B91: =AnnualPayments!B47 -> DICKINSON | C91: =AnnualPayments!D47 -> 68.39180852
B92: =AnnualPayments!B48 -> DONIPHAN | C92: =AnnualPayments!D48 -> 138.6007931
B93: =AnnualPayments!B49 -> DOUGLAS | C93: =AnnualPayments!D49 -> 83.28374534
B94: =AnnualPayments!B50 -> EDWARDS | C94: =AnnualPayments!D50 -> 45.76433464
B95: =AnnualPayments!B51 -> ELK | C95: =AnnualPayments!D51 -> 66.10438581
B96: =AnnualPayments!B52 -> ELLIS | C96: =AnnualPayments!D52 -> 46.35346445
B97: =AnnualPayments!B53 -> ELLSWORTH | C97: =AnnualPayments!D53 -> 56.24986753
B98: =AnnualPayments!B54 -> FINNEY | C98: =AnnualPayments!D54 -> 53.49536308
B99: =AnnualPayments!B55 -> FORD | C99: =AnnualPayments!D55 -> 46.46352378
B100: =AnnualPayments!B56 -> FRANKLIN | C100: =AnnualPayments!D56 -> 77.6799819
B101: =AnnualPayments!B57 -> GEARY | C101: =AnnualPayments!D57 -> 79.50763675
B102: =AnnualPayments!B58 -> GOVE | C102: =AnnualPayments!D58 -> 50.31686415
B103: =AnnualPayments!B59 -> GRAHAM | C103: =AnnualPayments!D59 -> 50.20066523
B104: =AnnualPayments!B60 -> GRANT | C104: =AnnualPayments!D60 -> 45.13721922
B105: =AnnualPayments!B61 -> GRAY | C105: =AnnualPayments!D61 -> 63.58002088
B106: =AnnualPayments!B62 -> GREELEY | C106: =AnnualPayments!D62 -> 42.66437256
B107: =AnnualPayments!B63 -> GREENWOOD | C107: =AnnualPayments!D63 -> 70.18036362
B108: =AnnualPayments!B64 -> HAMILTON | C108: =AnnualPayments!D64 -> 40.54664735
B109: =AnnualPayments!B65 -> HARPER | C109: =AnnualPayments!D65 -> 47.17691219
B110: =AnnualPayments!B66 -> HARVEY | C110: =AnnualPayments!D66 -> 57.13171904
B111: =AnnualPayments!B67 -> HASKELL | C111: =AnnualPayments!D67 -> 48.48191288
B112: =AnnualPayments!B68 -> HODGEMAN | C112: =AnnualPayments!D68 -> 47.18749326
B113: =AnnualPayments!B69 -> JACKSON | C113: =AnnualPayments!D69 -> 89.23093643
B114: =AnnualPayments!B70 -> JEFFERSON | C114: =AnnualPayments!D70 -> 84.55038461
B115: =AnnualPayments!B71 -> JEWELL | C115: =AnnualPayments!D71 -> 63.09344151
B116: =AnnualPayments!B72 -> JOHNSON | C116: =AnnualPayments!D72 -> 73.86891964
B117: =AnnualPayments!B73 -> KEARNY | C117: =AnnualPayments!D73 -> 60.66106071
B118: =AnnualPayments!B74 -> KINGMAN | C118: =AnnualPayments!D74 -> 48.40364433
B119: =AnnualPayments!B75 -> KIOWA | C119: =AnnualPayments!D75 -> 46.02331785
B120: =AnnualPayments!B76 -> LABETTE | C120: =AnnualPayments!D76 -> 66.85468682
B121: =AnnualPayments!B77 -> LANE | C121: =AnnualPayments!D77 -> 47.41202947
B122: =AnnualPayments!B78 -> LEAVENWORTH | C122: =AnnualPayments!D78 -> 87.63334257
B123: =AnnualPayments!B79 -> LINCOLN | C123: =AnnualPayments!D79 -> 66.36127043
B124: =AnnualPayments!B80 -> LINN | C124: =AnnualPayments!D80 -> 75.05593493
B125: =AnnualPayments!B81 -> LOGAN | C125: =AnnualPayments!D81 -> 44.93971123
B126: =AnnualPayments!B82 -> LYON | C126: =AnnualPayments!D82 -> 65.28217293
B127: =AnnualPayments!B83 -> MCPHERSON | C127: =AnnualPayments!D83 -> 56.88483319
B128: =AnnualPayments!B84 -> MARION | C128: =AnnualPayments!D84 -> 55.90917684
B129: =AnnualPayments!B85 -> MARSHALL | C129: =AnnualPayments!D85 -> 95.30301231
B130: =AnnualPayments!B86 -> MEADE | C130: =AnnualPayments!D86 -> 48.32136068
B131: =AnnualPayments!B87 -> MIAMI | C131: =AnnualPayments!D87 -> 68.70240773
B132: =AnnualPayments!B88 -> MITCHELL | C132: =AnnualPayments!D88 -> 69.63823562
B133: =AnnualPayments!B89 -> MONTGOMERY | C133: =AnnualPayments!D89 -> 66.08606992
B134: =AnnualPayments!B90 -> MORRIS | C134: =AnnualPayments!D90 -> 63.40438244
B135: =AnnualPayments!B91 -> MORTON | C135: =AnnualPayments!D91 -> 41.14644317
B136: =AnnualPayments!B92 -> NEMAHA | C136: =AnnualPayments!D92 -> 111.7823049
B137: =AnnualPayments!B93 -> NEOSHO | C137: =AnnualPayments!D93 -> 64.09156456
B138: =AnnualPayments!B94 -> NESS | C138: =AnnualPayments!D94 -> 49.73366692
B139: =AnnualPayments!B95 -> NORTON | C139: =AnnualPayments!D95 -> 45.58731595
B140: =AnnualPayments!B96 -> OSAGE | C140: =AnnualPayments!D96 -> 71.23723243
B141: =AnnualPayments!B97 -> OSBORNE | C141: =AnnualPayments!D97 -> 61.90531541
B142: =AnnualPayments!B98 -> OTTAWA | C142: =AnnualPayments!D98 -> 66.03624596
B143: =AnnualPayments!B99 -> PAWNEE | C143: =AnnualPayments!D99 -> 47.69935899
B144: =AnnualPayments!B100 -> PHILLIPS | C144: =AnnualPayments!D100 -> 54.33483765
B145: =AnnualPayments!B101 -> POTTAWATOMIE | C145: =AnnualPayments!D101 -> 90.2343369
B146: =AnnualPayments!B102 -> PRATT | C146: =AnnualPayments!D102 -> 42.93182363
B147: =AnnualPayments!B103 -> RAWLINS | C147: =AnnualPayments!D103 -> 46.84379344
B148: =AnnualPayments!B104 -> RENO | C148: =AnnualPayments!D104 -> 57.92184738
B149: =AnnualPayments!B105 -> REPUBLIC | C149: =AnnualPayments!D105 -> 72.35965408
B150: =AnnualPayments!B106 -> RICE | C150: =AnnualPayments!D106 -> 55.13497437
B151: =AnnualPayments!B107 -> RILEY | C151: =AnnualPayments!D107 -> 85.67236172
B152: =AnnualPayments!B108 -> ROOKS | C152: =AnnualPayments!D108 -> 54.0801528
B153: =AnnualPayments!B109 -> RUSH | C153: =AnnualPayments!D109 -> 49.59653552
B154: =AnnualPayments!B110 -> RUSSELL | C154: =AnnualPayments!D110 -> 50.11794233
B155: =AnnualPayments!B111 -> SALINE | C155: =AnnualPayments!D111 -> 61.38300342
B156: =AnnualPayments!B112 -> SCOTT | C156: =AnnualPayments!D112 -> 49.78250366
B157: =AnnualPayments!B113 -> SEDGWICK | C157: =AnnualPayments!D113 -> 55.70504426
B158: =AnnualPayments!B114 -> SEWARD | C158: =AnnualPayments!D114 -> 43.79859638
B159: =AnnualPayments!B115 -> SHAWNEE | C159: =AnnualPayments!D115 -> 93.22059139
B160: =AnnualPayments!B116 -> SHERIDAN | C160: =AnnualPayments!D116 -> 50.44952251
B161: =AnnualPayments!B117 -> SHERMAN | C161: =AnnualPayments!D117 -> 44.95208969
B162: =AnnualPayments!B118 -> SMITH | C162: =AnnualPayments!D118 -> 58.34183395
B163: =AnnualPayments!B119 -> STAFFORD | C163: =AnnualPayments!D119 -> 55.63466912
B164: =AnnualPayments!B120 -> STANTON | C164: =AnnualPayments!D120 -> 39.36288251
B165: =AnnualPayments!B121 -> STEVENS | C165: =AnnualPayments!D121 -> 40.31354686
B166: =AnnualPayments!B122 -> SUMNER | C166: =AnnualPayments!D122 -> 52.18178903
B167: =AnnualPayments!B123 -> THOMAS | C167: =AnnualPayments!D123 -> 46.93295667
B168: =AnnualPayments!B124 -> TREGO | C168: =AnnualPayments!D124 -> 43.8690408
B169: =AnnualPayments!B125 -> WABAUNSEE | C169: =AnnualPayments!D125 -> 87.44413181
B170: =AnnualPayments!B126 -> WALLACE | C170: =AnnualPayments!D126 -> 42.72089228
B171: =AnnualPayments!B127 -> WASHINGTON | C171: =AnnualPayments!D127 -> 84.05341346
B172: =AnnualPayments!B128 -> WICHITA | C172: =AnnualPayments!D128 -> 50.64671024
B173: =AnnualPayments!B129 -> WILSON | C173: =AnnualPayments!D129 -> 68.64814086
B174: =AnnualPayments!B130 -> WOODSON | C174: =AnnualPayments!D130 -> 67.21441277
B175: =AnnualPayments!B131 -> WYANDOTTE | C175: =AnnualPayments!D131 -> 100

Sheet Econ Analysis
B2: Vegetative Buffer: Economic Analysis | S2: =NOW() -> 2017-03-14T09:15:23.610
S3: =YEAR(S2) -> 2017
B4: ="Your project area is located in "&Inputs!C3 &" County, Kansas." -> Your project area is located in MARSHALL County, Kansas. | H4: Your project area (buffer size) is | I4: =Inputs!C12 -> 1.818181818 | J4: acres.
B6: The results are based upon the following assumptions:
B8: One time Costs: | C8: =SUM(Inputs!$C$15:$C$19) -> 2228.3204 | F8: One time Cost-Share Payments: | G8: =SUM(Inputs!$C$29:$C$31) -> 2213.110663 | J8: Time Period Selected: | K8: =Inputs!C42 -> 10 | L8: years
B9: Annual Costs: | C9: =Budget!C19 -> 63.63636364 | F9: Annual Incentive Payments: | G9: =Budget!F19 -> 270.3139986 | J9: Opportunity Cost of Your Money: | K9: =Inputs!C7 -> 0.05
B11: The first year out-of-pocket costs of the vegetative buffer would be | G11: =IF(Budget!C50-Budget!E50>0,Budget!C50-Budget!E50,0) -> 146.4218582 | H11: this accounts for any cost-share payments you may receive.
B13: Based on the information you have provided, a vegetative buffer on the project area would | H13: =IF(Budget!C44>0, "return", "lose") -> return | I13: =Budget!C44 -> 103.5210623 | J13: per acre annually.
B14: Based on the information you have provided, a vegetative buffer on the project area would | H14: =IF(Budget!C71>0, "return", "lose") -> return | I14: =Budget!C71 -> 188.2201133 | J14: annually.
B16: Based on the information you have provided, cropland on the project area would return | H16: =Budget!J44 -> 87.63365657 | I16: per acre annually.
B17: Based on the information you have provided, cropland on the project area would return | H17: =Budget!J71 -> 159.333921 | I17: annually.
B19: TAKE HOME MESSAGE:
B20: You would be | C20: =Budget!C71-Budget!J71 -> 28.88619222 | D20: per year | E20: =IF(C20>0, "better off", "worse off") -> better off | F20: installing this area to a vegetative buffer versus using it for crop production.
B95: ="In order to effectively compare scenarios which occur over multiple years (10 to 15 years), we must convert all costs and returns to today's dollars (e.g., "&S3 &" dollars)." -> In order to effectively compare scenarios which occur over multiple years (10 to 15 years), we must convert all costs and returns to today's dollars (e.g., 2017 dollars).
B97: Net Present Value calculations convert future values into today's dollars. The net present value analysis uses a discount factor to equate a series of future cash flows into an equivalent amount of cash today. For example, if you are considering enrolling land into a 15 year Continuous Conservation Reserve Program (CRP) program, the projected net income in years 2 through 15 is discounted back to its equivalent value in today’s dollars. Because a dollar today can earn interest until next year, it will be valued more highly than a dollar received in the future
B98: For more information regarding the economics of vegetative buffers, check out KSU Guide Sheet MF-2536 "Using Conservation
B99: Buffers to Protect Water Quality and Enhance Agricultural Profitability." | G99: http://www.bookstore.ksre.ksu.edu/pubs/MF2536.pdf
B101: For vegetative buffer assistance, be sure to contact your local county conservation district. A Kansas Conservation District Directory
B102: can be found at: | D102: http://www.kacdnet.org/districts.html
B105: If you have any questions regarding this Decision-Making Tool, please contact:
C107: Robin Reid
C108: Extension Associate
C109: Kansas State University
C110: robinreid@ksu.edu
B120: Limitation of Liability:
B122: This computer program is distrubuted by Kansas State University on an "as is" basis, without warranty. Kansas State University and the authors of this software will have no liability or responsibility to the cooperator or any other person or entity with respect to any liability, loss, or damage caused, or alleged to be caused, directly or indirectly by programs sold or given away by Kansas State University or the authors. This includes but is not limited to, any interruption of service, loss of business or anticipatory profits, or consequential damages resulting from user or operation, and in no event will Kansas State University or the authors be liable for loss of profits or indirect, special, or consequential damages arising from the use of the software provided by Kansas State University or the authors.

Sheet OneCost
B2: One Time Construction Costs Worksheet
B3: Enter Values in Purple Cells Only!!!
B4: Engineering and Design | I4: Total
C5: Vegetation/CCRP Area | I5: 30
I6: =SUM(I5:I5) -> 30 | K6: =I6 -> 30
B7: Vegetative Buffer Costs
C8: Equipment | E8: Acres | F8: @ | G8: $ / acre
C9: Site Preparation | E9: 1.82 | G9: 146 | I9: =E9*G9 -> 265.72
C10: Drill Cover Crop | E10: 1.21 | G10: 17 | I10: 20.57
C11: Herbicide application | E11: 0 | G11: 0 | I11: 0
C12: Drill Grass | E12: 0.61 | G12: 17 | I12: 10.37
C13: Tree & Shrub Planting | E13: 1.21 | G13: =450*1.08 -> 486 | I13: =E13*G13 -> 588.06
C14: Producer/Landowner | G14: 0 | I14: 0
I15: =SUM(I9:I14) -> 884.72 | K15: =I15 -> 884.72
C17: Materials | E17: Units | F17: @ | G17: $ / unit
C18: Cover Crop Seed | E18: 1.21 | G18: 55 | I18: =E18*G18 -> 66.55
C19: Herbicide | E19: 1.21 | G19: 100 | I19: =E19*G19 -> 121
C20: Grass Seed | E20: 0.61 | G20: 66.64 | I20: 40.6504
C21: Mulch | E21: 0 | G21: 0 | I21: 0
C22: Live Stakes | E22: 0 | G22: 0 | I22: 0
C23: Bare Roots | E23: =450*1.2 -> 540 | G23: 0.81 | I23: 437.4
C24: Trees | E24: 0 | G24: 0 | I24: 0
C25: Tree Shelters | E25: 108 | G25: 6 | I25: 648
C26: Other Material | E26: 0 | G26: 0 | I26: 0
I27: =SUM(I18:I26) -> 1313.6004 | K27: =I27 -> 1313.6004
C28: Other Labor Costs | E28: Hours | F28: @ | G28: $ / hour
C29: Other Labor | E29: 0 | G29: 0 | I29: =E29*G29 -> 0 | K29: =I29 -> 0
K31: =SUM(K9:K29) -> 2198.3204
F33: Total One Time Construction Costs | K33: =K6+K31 -> 2228.3204
B38: ** For Recommended Tree Species See "Establishing Riparian Buffers" - KSU MF-2489 at:
B39: http://www.bookstore.ksre.ksu.edu/pubs/mf2489.pdf

Sheet OnePayment
B2: One Time Payments Worksheet
B3: Enter Values in Purple Cells Only!!!
B4: Continuous Conservation Reserve Program (CCRP) for vegetation establishment: One time payment, FSA, 50% of county average cost | I4: =0.5*(OneCost!K31-OneCost!I18-OneCost!I10) -> 1055.6002
B6: CCRP-Practice Incentive Payment: One time payment, FSA, 40% of county average cost. | I6: =0.4*(OneCost!K31-OneCost!I18-OneCost!I10) -> 844.48016
B8: CCRP-Sign-up Incentive Payment: One time payment, FSA, $100/acre for CCRP area | I8: =100*Inputs!C12 -> 181.8181818
B10: Environmental Quality Incentives Program (cannot be used with any CRP program) | I10: 0
B12: Watershed Restoration and Protection Strategy Payment | I12: 0
B14: Other One Time Payments | I14: 0
G16: Total One Time Payments | J16: =SUM(I4:J15) -> 2081.898542
B18: * Default values are estimations only - calculated by multiplying the cost-share percentages by the one time cost values you entered previously. Cost-share payment rates are actually based on the lesser of actual or county average costs, so please consult with you local conservation district to obtain accurate values.

Sheet AnnualPayments
B2: Annual Payments Worksheet
B3: You May Enter Values in any of the Purple Cells
B4: CCRP rental rate w/out added incentives | J4: =Inputs!B69 -> 95.30301231 | K4: per acre /year
B5: Is the project area located in a designated TMDL Watershed? | J5: YES | O5: NO
B6: Annual Rental Payment (% of county rental rate) | J6: =IF(J5="yes",1.56,1.2) -> 1.56 | O6: YES
G8: Total Annual Payments | J8: =J4*J6 -> 148.6726992 | K8: per acre / year
B25: Estimated Continuous CRP Rental Rates
B26: COUNTY | C26: Upland CRP Weighted Average Rental Rates* | D26: Adjusted CCRP Rental Rates for vegetative buffer soils**
B27: ALLEN | C27: 54.49702721 | D27: =C27*$H$39+C27 -> 68.12128402
B28: ANDERSON | C28: 63.37317673 | D28: =C28*$H$39+C28 -> 79.21647091 | E28: *These values represent a simple weighted average of year 2014 "Upland" CRP rental rates.
B29: ATCHISON | C29: 85.50096846 | D29: 106.8762106 | F29: Year: | G29: 2015
B30: BARBER | C30: 39.83448383 | D30: 49.79310479 | F30: Source: | G30: USDA Farm Service Agency
B31: BARTON | C31: 37.96051566 | D31: 47.45064458
B32: BOURBON | C32: 57.31974548 | D32: 71.64968185 | E32: **These values have been adjusted to represent a more realistic CCRP rental rate for vegetative buffer sites. These soils are estimated to pay higher rental rates than Upland soils, due to their higher erosive potential. This does not include any of the added incentive payments. NOTE: This is only an estimate; check with your local Conservation District for specific rental rates. Make changes on the Assumptions sheet.
B33: BROWN | C33: 94.57066521 | D33: 118.2133315
B34: BUTLER | C34: 52.02207841 | D34: 65.02759801
B35: CHASE | C35: 61.18003362 | D35: 76.47504202
B36: CHAUTAUQUA | C36: 46.58840694 | D36: 58.23550867
B37: CHEROKEE | C37: 57.82132059 | D37: 72.27665074
B38: CHEYENNE | C38: 34.52795267 | D38: 43.15994084
B39: CLARK | C39: 35.72009472 | D39: 44.6501184 | E39: Adjustment Factor = | H39: 0.25
B40: CLAY | C40: 58.67976531 | D40: 73.34970664
B41: CLOUD | C41: 54.4967536 | D41: 68.12094201
B42: COFFEY | C42: 58.70683151 | D42: 73.38353939
B43: COMANCHE | C43: 33.8213649 | D43: 42.27670613
B44: COWLEY | C44: 44.27195034 | D44: 55.33993792
B45: CRAWFORD | C45: 54.72989416 | D45: 68.4123677
B46: DECATUR | C46: 39.38435526 | D46: 49.23044408
B47: DICKINSON | C47: 54.71344682 | D47: 68.39180852
B48: DONIPHAN | C48: 110.8806345 | D48: 138.6007931
B49: DOUGLAS | C49: 66.62699628 | D49: 83.28374534
B50: EDWARDS | C50: 36.61146771 | D50: 45.76433464
B51: ELK | C51: 52.88350865 | D51: 66.10438581
B52: ELLIS | C52: 37.08277156 | D52: 46.35346445
B53: ELLSWORTH | C53: 44.99989403 | D53: 56.24986753
B54: FINNEY | C54: 42.79629047 | D54: 53.49536308
B55: FORD | C55: 37.17081902 | D55: 46.46352378
B56: FRANKLIN | C56: 62.14398552 | D56: 77.6799819
B57: GEARY | C57: 63.6061094 | D57: 79.50763675
B58: GOVE | C58: 40.25349132 | D58: 50.31686415
B59: GRAHAM | C59: 40.16053218 | D59: =C59*$H$39+C59 -> 50.20066523
B60: GRANT | C60: 36.10977537 | D60: 45.13721922
B61: GRAY | C61: 50.8640167 | D61: 63.58002088
B62: GREELEY | C62: 34.13149805 | D62: 42.66437256
B63: GREENWOOD | C63: 56.1442909 | D63: 70.18036362
B64: HAMILTON | C64: 32.43731788 | D64: 40.54664735
B65: HARPER | C65: 37.74152975 | D65: 47.17691219
B66: HARVEY | C66: 45.70537523 | D66: 57.13171904
B67: HASKELL | C67: 38.78553031 | D67: 48.48191288
B68: HODGEMAN | C68: 37.74999461 | D68: 47.18749326
B69: JACKSON | C69: 71.38474915 | D69: 89.23093643
B70: JEFFERSON | C70: 67.64030769 | D70: 84.55038461
B71: JEWELL | C71: 50.4747532 | D71: 63.09344151
B72: JOHNSON | C72: 59.09513571 | D72: 73.86891964
B73: KEARNY | C73: 48.52884857 | D73: 60.66106071
B74: KINGMAN | C74: 38.72291546 | D74: 48.40364433
B75: KIOWA | C75: 36.81865428 | D75: 46.02331785
B76: LABETTE | C76: 53.48374946 | D76: 66.85468682
B77: LANE | C77: 37.92962358 | D77: 47.41202947
B78: LEAVENWORTH | C78: 70.10667405 | D78: 87.63334257
B79: LINCOLN | C79: 53.08901635 | D79: 66.36127043
B80: LINN | C80: 60.04474794 | D80: 75.05593493
B81: LOGAN | C81: 35.95176898 | D81: 44.93971123
B82: LYON | C82: 52.22573834 | D82: 65.28217293
B83: MCPHERSON | C83: 45.50786655 | D83: 56.88483319
B84: MARION | C84: 44.72734147 | D84: 55.90917684
B85: MARSHALL | C85: 76.24240985 | D85: 95.30301231
B86: MEADE | C86: 38.65708855 | D86: 48.32136068
B87: MIAMI | C87: 54.96192619 | D87: 68.70240773
B88: MITCHELL | C88: 55.7105885 | D88: 69.63823562
B89: MONTGOMERY | C89: 52.86885593 | D89: 66.08606992
B90: MORRIS | C90: 50.72350595 | D90: 63.40438244
B91: MORTON | C91: 32.91715454 | D91: =C91*$H$39+C91 -> 41.14644317
B92: NEMAHA | C92: 89.42584392 | D92: 111.7823049
B93: NEOSHO | C93: 51.27325165 | D93: 64.09156456
B94: NESS | C94: 39.78693354 | D94: 49.73366692
B95: NORTON | C95: 36.46985276 | D95: 45.58731595
B96: OSAGE | C96: 56.98978594 | D96: 71.23723243
B97: OSBORNE | C97: 49.52425233 | D97: 61.90531541
B98: OTTAWA | C98: 52.82899677 | D98: 66.03624596
B99: PAWNEE | C99: 38.15948719 | D99: 47.69935899
B100: PHILLIPS | C100: 43.46787012 | D100: 54.33483765
B101: POTTAWATOMIE | C101: 72.18746952 | D101: 90.2343369
B102: PRATT | C102: 34.34545891 | D102: 42.93182363
B103: RAWLINS | C103: 37.47503475 | D103: 46.84379344
B104: RENO | C104: 46.3374779 | D104: 57.92184738
B105: REPUBLIC | C105: 57.88772327 | D105: 72.35965408
B106: RICE | C106: 44.1079795 | D106: 55.13497437
B107: RILEY | C107: 68.53788937 | D107: 85.67236172
B108: ROOKS | C108: 43.26412224 | D108: 54.0801528
B109: RUSH | C109: 39.67722842 | D109: 49.59653552
B110: RUSSELL | C110: 40.09435386 | D110: 50.11794233
B111: SALINE | C111: 49.10640274 | D111: 61.38300342
B112: SCOTT | C112: 39.82600293 | D112: 49.78250366
B113: SEDGWICK | C113: 44.5640354 | D113: 55.70504426
B114: SEWARD | C114: 35.0388771 | D114: 43.79859638
B115: SHAWNEE | C115: 74.57647311 | D115: 93.22059139
B116: SHERIDAN | C116: 40.35961801 | D116: 50.44952251
B117: SHERMAN | C117: 35.96167175 | D117: 44.95208969
B118: SMITH | C118: 46.67346716 | D118: 58.34183395
B119: STAFFORD | C119: 44.5077353 | D119: 55.63466912
B120: STANTON | C120: 31.49030601 | D120: 39.36288251
B121: STEVENS | C121: 32.25083748 | D121: 40.31354686
B122: SUMNER | C122: 41.74543122 | D122: 52.18178903
B123: THOMAS | C123: 37.54636534 | D123: =C123*$H$39+C123 -> 46.93295667
B124: TREGO | C124: 35.09523264 | D124: 43.8690408
B125: WABAUNSEE | C125: 69.95530545 | D125: 87.44413181
B126: WALLACE | C126: 34.17671383 | D126: 42.72089228
B127: WASHINGTON | C127: 67.24273077 | D127: 84.05341346
B128: WICHITA | C128: 40.51736819 | D128: 50.64671024
B129: WILSON | C129: 54.91851269 | D129: 68.64814086
B130: WOODSON | C130: 53.77153021 | D130: 67.21441277
B131: WYANDOTTE | C131: 80 | D131: =C131*$H$39+C131 -> 100

Sheet Cropland Trends
B2: KANSAS LAND VALUES & CASH RENTS 2001-2015
B3: source: | C3: https://quickstats.nass.usda.gov/
B5: Non-Irrigated Cropland Values | G5: Non-Irrigated Cropland Rents
B6: Year | C6: Value | D6: % change from previous year | G6: Year | H6: Value | I6: % change from previous year
B7: 2001 | C7: 635 | D7: 0.0008 | G7: 2001 | H7: 36
B8: 2002 | C8: 640 | D8: =(C8-C7)/C7 -> 0.007874015748 | G8: 2002 | H8: 36 | I8: =(H8-H7)/H7 -> 0
B9: 2003 | C9: 645 | D9: =(C9-C8)/C8 -> 0.0078125 | G9: 2003 | H9: 36 | I9: 0
B10: 2004 | C10: 650 | D10: 0.007751937984 | G10: 2004 | H10: 37.5 | I10: 0.04166666667
B11: 2005 | C11: 770 | D11: 0.1846153846 | G11: 2005 | H11: 38.5 | I11: 0.02666666667
B12: 2006 | C12: 820 | D12: 0.06493506494 | G12: 2006 | H12: 39 | I12: 0.01298701299
B13: 2007 | C13: 880 | D13: 0.07317073171 | G13: 2007 | H13: 41 | I13: 0.05128205128
B14: 2008 | C14: 980 | D14: 0.1136363636 | G14: 2008 | H14: 42.5 | I14: 0.03658536585
B15: 2009 | C15: 981 | D15: 0.001020408163 | G15: 2009 | H15: 43.5 | I15: 0.02352941176
B16: 2010 | C16: 1060 | D16: 0.08053007136 | G16: 2010 | H16: 43.5 | I16: 0
B17: 2011 | C17: 1290 | D17: 0.2169811321 | G17: 2011 | H17: 44 | I17: 0.01149425287
B18: 2012 | C18: 1590 | D18: 0.2325581395 | G18: 2012 | H18: 52.5 | I18: 0.1931818182
B19: 2013 | C19: 1840 | D19: 0.1572327044 | G19: 2013 | H19: 53 | I19: 0.009523809524
B20: 2014 | C20: 2150 | D20: 0.1684782609 | G20: 2014 | H20: 54 | I20: 0.01886792453
B21: 2015 | C21: 2090 | D21: -0.02790697674 | G21: 2015 | H21: 58 | I21: 0.07407407407
B22: 15-year average = | D22: =AVERAGE(D8:D21) -> 0.09204926702 | G22: 15-year average = | I22: =AVERAGE(I8:I21) -> 0.03570421817
B24: 36-year average = | D24: 0.041 | G24: 36-year average = | I24: 0.022
B32: For county rental rates and values go to:
B33: AgManager.info Land Values | G33: AgManager.info Rental Rates
B36: Historical Kansas Land Values 1880-2016
B63: Source: NASS, compiled by Dr. Mykel Taylor, 2017

Sheet Programs
B2: Available Funding for the Vegetative Portion of a Streambank Stabilization Project
B3: Program | C3: Agency | D3: Cost Share | E3: Annual Rental Payment (percentage of County Soil Rental Rate) | F3: One Time Bonus | G3: Annual Maintenace Cost Assistance | H3: Additional Notes**
B4: CRP Continuous Sign-up (CCRP) | C4: FSA | D4: 0.5 | E4: 1 | H4: Landowners can also apply for a reduction in assessed value of land for tax purposes
B5: CRP Continuous Sign-up (CCRP) | C5: FSA | E5: 0.2 | H5: added incentive for contiuous sign-up
B6: CRP Continuous Sign-up (CCRP) | C6: FSA | E6: 0.1 | H6: added incentive for land in EPA "wellhead protection areas"
B7: CCRP-SIP | C7: FSA | F7: $10 per acre X years of contract ($100 per acre) | H7: upfront signing incentive payment - bonus
B8: CCRP-PIP | C8: FSA | D8: 0.4 | H8: practice incentive payment for eligible installation costs
B9: KS WQ Buffer Initiative | C9: SCC | E9: 30% (multiplied by the total CCRP rental payment with all added incentives) | H9: must meet continous CRP requirements AND be in a TMDL Watershed
B10: RCPP/EQIP* | C10: NRCS | D10: Flat rate per unit or acre installed | H10: Only in eligible areas. See your local USDA service center/NRCS for details
B11: Watershed Land Trust** | C11: The Land Trust | D11: Market value of land - with limitations | H11: Long-term easement; contact (913) 685-4600
B12: Clean Water Farms Project | C12: KS Rural Center | D12: up to $5000 in matching funds | F12: $250 for completing farm assessment | H12: must be in a Category 1 "high-priority" watershed
B13: Partners for Fish & Wildlife | C13: Fish and Wildlife Service | D13: 10% - 90% | H13: dependent on: length of agreement, total acres, wildlife & environmental benefits
B14: Example Totals: | D14: 0.9 | E14: 1.56 | F14: 100 | G14: 4
B16: NOTE: The turquoise cells represent the funding programs typically utilized for vegetative buffers. The other programs can definitely be used, but they are more site and region specific.
B18: *Cannot be used with any CRP program
B19: **more requirements may apply, contact the respective agency to find out all the details

Sheet TaxInfo

Sheet Budget
B2: General Data For Vegetative Buffer
B4: Discount Rate | E4: =Inputs!C7 -> 0.05
B5: =Inputs!B4 -> Cropland Rental Rate - not CCRP rental rate | E5: =Inputs!C4 -> 80 | F5: per acre / year
B6: =Inputs!B5 -> Annual Cropland Rental Growth Rate | E6: =Inputs!C5 -> 0.022
B7: Total Annual Costs | E7: =Inputs!C26 -> 35 | F7: per acre / year
B8: =Inputs!B25 -> Inflation Rate of Annual Costs | E8: =Inputs!C25 -> 0.04
B10: Project Length (feet) | E10: =Inputs!C10 -> 1000
B11: Project Width (feet) | E11: =Inputs!C11 -> 66
B12: Acres (length x width/43,560) | E12: =Inputs!C12 -> 1.818181818
B13: Length of analysis (years) | E13: =Inputs!C42 -> 10
B14: Cropland Property Tax ($/acre) | E14: =Inputs!C6 -> 12
B15: Tame Grass Property Tax ($/acre) | E15: =E14*(1-(Inputs!C43)) -> 12
B17: COSTS | E17: PAYMENTS RECEIVED
B18: Total one-time | C18: =SUM(Inputs!C15:C19) -> 2228.3204 | E18: Total one-time | F18: =Inputs!C29+Inputs!C30+Inputs!C31 -> 2213.110663
B19: Total annual | C19: =E7*E12 -> 63.63636364 | E19: Total annual | F19: =Inputs!C39*E12 -> 270.3139986
B21: Net Present Value Table: Vegetative Buffer (per acre) | I21: NPV Table: Cropland Rent (per acre)
B22: Year | C22: One Time Costs | D22: Annual Costs | E22: One Time Payments | F22: Annual Payments | G22: Net Property Tax Impact | I22: Year | J22: Rent
B23: 0 | C23: =C18/E12 -> 1225.57622 | D23: 0 | E23: =(Inputs!C29+Inputs!C30)/E12 -> 1145.044198 | F23: 0 | G23: =E15-E14 -> 0 | I23: =B23 -> 0 | J23: 0
B24: 1 | C24: 0 | D24: =C19/E12 -> 35 | E24: =(IF(Inputs!$C$32=Budget!B24,Inputs!$C$31,0))/$E$12 -> 0 | F24: =IF(B24<=Budget!$E$13,Budget!$F$19/$E$12,"-") -> 148.6726992 | G24: =G23*(1+$E$6) -> 0 | I24: =B24 -> 1 | J24: =E5 -> 80
B25: 2 | C25: 0 | D25: =IF(B25<=$E$13,D24*(1+$E$8),"-") -> 36.4 | E25: =(IF(Inputs!$C$32=Budget!B25,Inputs!$C$31,0))/$E$12 -> 0 | F25: =IF(B25<=Budget!$E$13,Budget!$F$19/$E$12,"-") -> 148.6726992 | G25: =G24*(1+$E$6) -> 0 | I25: 2 | J25: =IF(I25<=$E$13,J24*(1+$E$6),"-") -> 81.76
B26: 3 | C26: 0 | D26: =IF(B26<=$E$13,D25*(1+$E$8),"-") -> 37.856 | E26: =(IF(Inputs!$C$32=Budget!B26,Inputs!$C$31,0))/$E$12 -> 0 | F26: =IF(B26<=Budget!$E$13,Budget!$F$19/$E$12,"-") -> 148.6726992 | G26: 0 | I26: 3 | J26: 83.55872
B27: 4 | C27: 0 | D27: 39.37024 | E27: =(IF(Inputs!$C$32=Budget!B27,Inputs!$C$31,0))/$E$12 -> 0 | F27: =IF(B27<=Budget!$E$13,Budget!$F$19/$E$12,"-") -> 148.6726992 | G27: 0 | I27: 4 | J27: 85.39701184
B28: 5 | C28: 0 | D28: 40.9450496 | E28: =(IF(Inputs!$C$32=Budget!B28,Inputs!$C$31,0))/$E$12 -> 0 | F28: =IF(B28<=Budget!$E$13,Budget!$F$19/$E$12,"-") -> 148.6726992 | G28: 0 | I28: 5 | J28: 87.2757461
B29: 6 | C29: 0 | D29: 42.58285158 | E29: =(IF(Inputs!$C$32=Budget!B29,Inputs!$C$31,0))/$E$12 -> 0 | F29: =IF(B29<=Budget!$E$13,Budget!$F$19/$E$12,"-") -> 148.6726992 | G29: 0 | I29: 6 | J29: 89.19581251
B30: 7 | C30: 0 | D30: 44.28616565 | E30: =(IF(Inputs!$C$32=Budget!B30,Inputs!$C$31,0))/$E$12 -> 72.16666667 | F30: =IF(B30<=Budget!$E$13,Budget!$F$19/$E$12,"-") -> 148.6726992 | G30: 0 | I30: 7 | J30: 91.15812039
B31: 8 | C31: 0 | D31: 46.05761227 | E31: =(IF(Inputs!$C$32=Budget!B31,Inputs!$C$31,0))/$E$12 -> 0 | F31: =IF(B31<=Budget!$E$13,Budget!$F$19/$E$12,"-") -> 148.6726992 | G31: 0 | I31: 8 | J31: 93.16359904
B32: 9 | C32: 0 | D32: 47.89991676 | E32: =(IF(Inputs!$C$32=Budget!B32,Inputs!$C$31,0))/$E$12 -> 0 | F32: =IF(B32<=Budget!$E$13,Budget!$F$19/$E$12,"-") -> 148.6726992 | G32: 0 | I32: 9 | J32: 95.21319822
B33: 10 | C33: 0 | D33: 49.81591343 | E33: =(IF(Inputs!$C$32=Budget!B33,Inputs!$C$31,0))/$E$12 -> 0 | F33: =IF(B33<=Budget!$E$13,Budget!$F$19/$E$12,"-") -> 148.6726992 | G33: 0 | I33: 10 | J33: 97.30788858
B34: 11 | C34: 0 | D34: - | E34: =(IF(Inputs!$C$32=Budget!B34,Inputs!$C$31,0))/$E$12 -> 0 | F34: =IF(B34<=Budget!$E$13,Budget!$F$19/$E$12,"-") -> - | G34: 0 | I34: 11 | J34: -
B35: 12 | C35: 0 | D35: - | E35: =(IF(Inputs!$C$32=Budget!B35,Inputs!$C$31,0))/$E$12 -> 0 | F35: =IF(B35<=Budget!$E$13,Budget!$F$19/$E$12,"-") -> - | G35: 0 | I35: 12 | J35: -
B36: 13 | C36: 0 | D36: - | E36: =(IF(Inputs!$C$32=Budget!B36,Inputs!$C$31,0))/$E$12 -> 0 | F36: =IF(B36<=Budget!$E$13,Budget!$F$19/$E$12,"-") -> - | G36: 0 | I36: 13 | J36: -
B37: 14 | C37: 0 | D37: - | E37: =(IF(Inputs!$C$32=Budget!B37,Inputs!$C$31,0))/$E$12 -> 0 | F37: =IF(B37<=Budget!$E$13,Budget!$F$19/$E$12,"-") -> - | G37: 0 | I37: 14 | J37: -
B38: 15 | C38: 0 | D38: - | E38: =(IF(Inputs!$C$32=Budget!B38,Inputs!$C$31,0))/$E$12 -> 0 | F38: =IF(B38<=Budget!$E$13,Budget!$F$19/$E$12,"-") -> - | G38: 0 | I38: 15 | J38: -
B40: Sum totals | C40: =SUM(C23:C38) -> 1225.57622 | D40: =SUM(D23:D38) -> 420.2137493 | E40: =SUM(E23:E38) -> 1217.210865 | F40: =SUM(F23:F38) -> 1486.726992 | G40: =SUM(G23:G38) -> 0 | I40: Sum totals | J40: =SUM(J23:J38) -> 884.0300967
B41: Present Value | C41: =NPV($E$4,C24:C38)+C23 -> 1225.57622 | D41: =NPV($E$4,D24:D38)+D23 -> 319.4044525 | E41: =NPV($E$4,E24:E38)+E23 -> 1196.331701 | F41: =NPV($E$4,F24:F38)+F23 -> 1148.011174 | G41: =NPV($E$4,G24:G38)+G23 -> 0 | I41: Present Value | J41: =NPV($E$4,J24:J38)+J23 -> 676.6838669
B43: Net Present Value | C43: =-C41-D41+E41+F41-G41 -> 799.3622026 | I43: Net Present Value | J43: =J41 -> 676.6838669
B44: Annualized Value | C44: =-PMT(E4,E13,C43) -> 103.5210623 | I44: Annualized Value | J44: =-PMT(E4,E13,J43) -> 87.63365657
B48: Net Present Value Table: Vegetative Buffer (total project area) | I48: NPV Table: Cropland Rental Rate (total project area)
B49: Year | C49: One Time Costs | D49: Annual Costs | E49: One Time Payments | F49: Annual Payments | G49: Net Property Tax Impact | I49: Year | J49: Rent
B50: 0 | C50: =C18 -> 2228.3204 | D50: 0 | E50: =Inputs!C29+Inputs!C30 -> 2081.898542 | F50: 0 | G50: =E15*E12-E14*E12 -> 0 | I50: =B50 -> 0 | J50: =J23*$E$12 -> 0
B51: 1 | C51: 0 | D51: =C19 -> 63.63636364 | E51: =(IF(Inputs!$C$32=Budget!B51,Inputs!$C$31,0)) -> 0 | F51: =IF(B51<=Budget!$E$13,Budget!$F$19,"-") -> 270.3139986 | G51: =G50*(1+$E$6) -> 0 | I51: =B51 -> 1 | J51: =IF(I51<=$E$13,J24*$E$12,"-") -> 145.4545455
B52: 2 | C52: 0 | D52: =IF(B52<=$E$13,D51*(1+$E$8),"-") -> 66.18181818 | E52: =(IF(Inputs!$C$32=Budget!B52,Inputs!$C$31,0)) -> 0 | F52: =IF(B52<=Budget!$E$13,Budget!$F$19,"-") -> 270.3139986 | G52: =G51*(1+$E$6) -> 0 | I52: 2 | J52: =IF(I52<=$E$13,J25*$E$12,"-") -> 148.6545455
B53: 3 | C53: 0 | D53: 68.82909091 | E53: =(IF(Inputs!$C$32=Budget!B53,Inputs!$C$31,0)) -> 0 | F53: =IF(B53<=Budget!$E$13,Budget!$F$19,"-") -> 270.3139986 | G53: 0 | I53: 3 | J53: 151.9249455
B54: 4 | C54: 0 | D54: 71.58225455 | E54: =(IF(Inputs!$C$32=Budget!B54,Inputs!$C$31,0)) -> 0 | F54: =IF(B54<=Budget!$E$13,Budget!$F$19,"-") -> 270.3139986 | G54: 0 | I54: 4 | J54: 155.2672943
B55: 5 | C55: 0 | D55: 74.44554473 | E55: =(IF(Inputs!$C$32=Budget!B55,Inputs!$C$31,0)) -> 0 | F55: =IF(B55<=Budget!$E$13,Budget!$F$19,"-") -> 270.3139986 | G55: 0 | I55: 5 | J55: 158.6831747
B56: 6 | C56: 0 | D56: 77.42336652 | E56: =(IF(Inputs!$C$32=Budget!B56,Inputs!$C$31,0)) -> 0 | F56: =IF(B56<=Budget!$E$13,Budget!$F$19,"-") -> 270.3139986 | G56: 0 | I56: 6 | J56: 162.1742046
B57: 7 | C57: 0 | D57: 80.52030118 | E57: =(IF(Inputs!$C$32=Budget!B57,Inputs!$C$31,0)) -> 131.2121212 | F57: =IF(B57<=Budget!$E$13,Budget!$F$19,"-") -> 270.3139986 | G57: 0 | I57: 7 | J57: 165.7420371
B58: 8 | C58: 0 | D58: 83.74111322 | E58: =(IF(Inputs!$C$32=Budget!B58,Inputs!$C$31,0)) -> 0 | F58: =IF(B58<=Budget!$E$13,Budget!$F$19,"-") -> 270.3139986 | G58: 0 | I58: 8 | J58: 169.3883619
B59: 9 | C59: 0 | D59: 87.09075775 | E59: =(IF(Inputs!$C$32=Budget!B59,Inputs!$C$31,0)) -> 0 | F59: =IF(B59<=Budget!$E$13,Budget!$F$19,"-") -> 270.3139986 | G59: 0 | I59: 9 | J59: 173.1149058
B60: 10 | C60: 0 | D60: 90.57438806 | E60: =(IF(Inputs!$C$32=Budget!B60,Inputs!$C$31,0)) -> 0 | F60: =IF(B60<=Budget!$E$13,Budget!$F$19,"-") -> 270.3139986 | G60: 0 | I60: 10 | J60: 176.9234338
B61: 11 | C61: 0 | D61: - | E61: =(IF(Inputs!$C$32=Budget!B61,Inputs!$C$31,0)) -> 0 | F61: =IF(B61<=Budget!$E$13,Budget!$F$19,"-") -> - | G61: 0 | I61: 11 | J61: =IF(I61<=$E$13,J34*$E$12,"-") -> -
B62: 12 | C62: 0 | D62: - | E62: =(IF(Inputs!$C$32=Budget!B62,Inputs!$C$31,0)) -> 0 | F62: =IF(B62<=Budget!$E$13,Budget!$F$19,"-") -> - | G62: 0 | I62: 12 | J62: -
B63: 13 | C63: 0 | D63: - | E63: =(IF(Inputs!$C$32=Budget!B63,Inputs!$C$31,0)) -> 0 | F63: =IF(B63<=Budget!$E$13,Budget!$F$19,"-") -> - | G63: 0 | I63: 13 | J63: -
B64: 14 | C64: 0 | D64: - | E64: =(IF(Inputs!$C$32=Budget!B64,Inputs!$C$31,0)) -> 0 | F64: =IF(B64<=Budget!$E$13,Budget!$F$19,"-") -> - | G64: 0 | I64: 14 | J64: -
B65: 15 | C65: 0 | D65: - | E65: =(IF(Inputs!$C$32=Budget!B65,Inputs!$C$31,0)) -> 0 | F65: =IF(B65<=Budget!$E$13,Budget!$F$19,"-") -> - | G65: 0 | I65: 15 | J65: -
B67: Sum totals | C67: =SUM(C50:C65) -> 2228.3204 | D67: =SUM(D50:D65) -> 764.0249987 | E67: =SUM(E50:E65) -> 2213.110663 | F67: =SUM(F50:F65) -> 2703.139986 | G67: =SUM(G50:G65) -> 0 | I67: Sum totals | J67: =J40*$E$12 -> 1607.327449
B68: Present Value | C68: =NPV($E$4,C51:C65)+C50 -> 2228.3204 | D68: =NPV($E$4,D51:D65)+D50 -> 580.7353682 | E68: =NPV($E$4,E51:E65)+E50 -> 2175.148547 | F68: =NPV($E$4,F51:F65)+F50 -> 2087.293045 | G68: =NPV($E$4,G51:G65)+G50 -> 0 | I68: Present Value | J68: =J41*$E$12 -> 1230.334303
B70: Net Present Value | C70: =-C68-D68+E68+F68-G68 -> 1453.385823 | I70: Net Present Value | J70: =J43*$E$12 -> 1230.334303
B71: Annualized Value | C71: =-PMT(E4,E13,C70) -> 188.2201133 | I71: Annualized Value | J71: =J44*$E$12 -> 159.333921
